fUSD/lending_fUSD_20260214
["ID","MTS","AMOUNT","RATE_DAILY","PERIOD"]
[405376083,1771093986590,-500.0,0.00043288,120]
[405376084,1771093986606,-516.17071758,0.00043288,120]
[405376085,1771093986624,-539.7506801,0.00043288,120]
[405376086,1771093986635,-500.0,0.00043288,120]
[405376087,1771093986649,-500.0,0.00043288,120]
[405376088,1771093986665,-150.0,0.00043288,2]
[405376089,1771093986684,-150.0,0.00043288,2]
[405376090,1771093986699,-261.18688278,0.00043288,120]
[405376091,1771093986715,-150.0,0.00043288,2]
[405376092,1771093986729,-500.0,0.00043288,120]
[405376093,1771093986744,-500.0,0.00043288,120]
[405376094,1771093986759,-500.0,0.00043288,120]
[405376095,1771093986773,-500.0,0.00043288,120]
[405376096,1771093986788,-500.0,0.00043288,120]
[405376097,1771093986802,-425.63446487,0.00043288,120]
[405376098,1771093986815,-500.0,0.00043288,120]
[405376099,1771093986828,-500.0,0.00043288,120]
[405376100,1771093986843,-150.0,0.00043288,2]
[405376101,1771093986855,-500.0,0.00043288,120]
[405376102,1771093986867,-500.0,0.00043288,120]
[405376103,1771093986883,-500.0,0.00043288,120]
[405376104,1771093986896,-500.0,0.00043288,120]
[405376105,1771093986909,-500.0,0.00043288,120]
[405376106,1771093986922,-500.0,0.00043288,120]
[405376107,1771093986936,-500.0,0.00043288,120]
[405376108,1771093986952,-500.0,0.00043288,120]
[405376109,1771093986966,-500.0,0.00043288,120]
[405376110,1771093986980,-500.0,0.00043288,120]
[405376111,1771093986995,-500.0,0.00043288,120]
[405376112,1771093987008,-500.0,0.00043288,120]
[405376113,1771093987021,-500.0,0.00043288,120]
[405376114,1771093987034,-500.0,0.00043288,120]
[405376115,1771093987048,-500.0,0.00043288,120]
[405376116,1771093987062,-500.0,0.00043288,120]
[405376117,1771093987076,-500.0,0.00043288,120]
[405376118,1771093987090,-500.0,0.00043288,120]
[405376119,1771093987103,-173.67992027,0.00043288,120]
[405376120,1771093987116,-500.0,0.00043288,120]
[405376121,1771093987129,-500.0,0.00043288,120]
[405376122,1771093987142,-500.0,0.00043288,120]
[405376123,1771093987155,-500.0,0.00043288,120]
[405376124,1771093987168,-558.70649222,0.00043288,120]
[405376125,1771093987181,-150.0,0.00043288,120]
[405376126,1771093987194,-500.0,0.00043288,120]
[405376127,1771093987206,-150.0,0.00043288,120]
[405376128,1771093987218,-509.06553681,0.00043288,120]
[405376129,1771093987231,-150.0,0.00043288,120]
[405376130,1771093987245,-500.0,0.00043288,120]
[405376131,1771093987258,-3015.0,0.00043288,120]
[405376132,1771093987271,-272.0534842,0.00043288,120]
[405376133,1771093987285,-500.0,0.00043288,120]
[405376134,1771093987297,-3015.0,0.00043288,120]
[405376135,1771093987310,-315.24323863,0.00043288,120]
[405376136,1771093987323,-3015.0,0.00043288,120]
[405376137,1771093987338,-3015.0,0.00043288,120]
[405376138,1771093987351,-3015.0,0.00043288,120]
[405376139,1771093987363,-3015.0,0.00043288,120]
[405376140,1771093987376,-3015.0,0.00043288,120]
[405376141,1771093987389,-3015.0,0.00043288,120]
[405376142,1771093987403,-500.0,0.00043288,2]
[405376143,1771093987417,-3015.0,0.00043288,120]
[405376144,1771093987437,-500.0,0.00043288,2]
[405376145,1771093987450,-3015.0,0.00043288,120]
[405376146,1771093987464,-500.0,0.00043288,2]
[405376147,1771093987476,-3015.0,0.00043288,120]
[405376148,1771093987490,-500.0,0.00043288,2]
[405376149,1771093987502,-3015.0,0.00043288,120]
[405376150,1771093987514,-500.0,0.00043288,2]
[405376151,1771093987526,-3015.0,0.00043288,120]
[405376152,1771093987539,-500.0,0.00043288,2]
[405376153,1771093987552,-3015.0,0.00043288,120]
[405376154,1771093987564,-500.0,0.00043288,2]
[405376155,1771093987576,-3015.0,0.00043288,120]
[405376156,1771093987589,-500.0,0.00043288,2]
[405376157,1771093987601,-3015.0,0.00043288,120]
[405376158,1771093987614,-500.0,0.00043288,2]
[405376159,1771093987628,-500.0,0.00043288,2]
[405376160,1771093987639,-500.0,0.00043288,2]
[405376161,1771093987651,-3015.0,0.00043288,120]
[405376162,1771093987663,-500.0,0.00043288,2]
[405376163,1771093987677,-500.0,0.00043288,2]
[405376164,1771093987690,-500.0,0.00043288,2]
[405376165,1771093987704,-500.0,0.00043288,2]
[405376166,1771093987716,-3015.0,0.00043288,120]
[405376167,1771093987729,-500.0,0.00043288,2]
[405376168,1771093987741,-500.0,0.00043288,2]
[405376169,1771093987753,-3015.0,0.00043288,120]
[405376170,1771093987764,-500.0,0.00043288,2]
[405376171,1771093987776,-346.09620399,0.00043288,2]
[405376172,1771093987788,-3015.0,0.00043288,120]
[405376173,1771093987800,-3015.0,0.00043288,120]
[405376174,1771093987813,-3015.0,0.00043288,120]
[405376175,1771093987825,-3015.0,0.00043288,120]
[405376176,1771093987838,-3028.32068615,0.00043288,120]
[405376177,1771093987851,-152.12,0.00043295,120]
[405376178,1771093987863,-2000.0,0.000433,2]
[405376179,1771093987875,-150.0,0.00043334,120]
[405376180,1771093987892,-10370.0,0.00043343,2]
[405376181,1771093987907,-1036.1,0.00043361,120]
[405376182,1771093987922,-13107.0,0.00043377,30]
[405376183,1771093987935,-152.12,0.00043395,120]
[405376184,1771093987949,-661.64,0.00043397,120]
[405376185,1771093987962,-10753.69,0.00043398,2]
[405376186,1771093987975,-1250.0,0.000434,120]
[405376187,1771093987987,-1250.0,0.000434,120]
[405376188,1771093987999,-1250.0,0.000434,60]
[405376189,1771093988012,-250.0,0.000434,120]
[405376190,1771093988025,-10444.35407722,0.0004344,120]
[405376191,1771093988037,-11151.57653,0.00043453,2]
[405376192,1771093988050,-1037.30143839,0.00043481,60]
[405376193,1771093988063,-878.90734632,0.00043481,60]
[405376194,1771093988075,-569.69889968,0.00043481,60]
[405376195,1771093988088,-152.12,0.00043495,120]
[405376196,1771093988100,-400.0,0.000435,120]
[405376197,1771093988113,-400.0,0.000435,30]
[405376198,1771093988124,-50000.0,0.000435,120]
[405376199,1771093988137,-22342.84126592,0.000435,120]
[405376200,1771093988149,-47943.10804507,0.000435,120]
[405376201,1771093988160,-500.0,0.000435,90]
[405376202,1771093988172,-500.0,0.000435,60]
[405376203,1771093988183,-555.0,0.000435,25]
[405376204,1771093988194,-499.0,0.000435,120]
[405376205,1771093988205,-500.0,0.000435,120]
[405376206,1771093988216,-11564.18486161,0.00043508,2]
[405376207,1771093988229,-661.64,0.00043534,120]
[405376208,1771093988240,-150.0,0.00043544,120]
[405376209,1771093988252,-500.0,0.0004355,120]
[405376210,1771093988264,-2236.17,0.00043561,120]
[405376211,1771093988276,-527.9176838,0.00043561,120]
[405376212,1771093988288,-1499.27,0.00043561,120]
[405376213,1771093988299,-679.39,0.00043561,120]
[405376214,1771093988312,-530.55,0.00043561,120]
[405376215,1771093988325,-425.12,0.00043561,2]
[405376216,1771093988336,-500.0,0.00043561,120]
[405376217,1771093988349,-500.0,0.00043561,120]
[405376218,1771093988361,-3818.35,0.00043561,120]
[405376219,1771093988373,-500.0,0.00043561,120]
[405376220,1771093988385,-1478.52,0.00043561,120]
[405376221,1771093988398,-500.0,0.00043561,120]
[405376222,1771093988410,-556.97,0.00043561,120]
[405376223,1771093988424,-500.0,0.00043561,120]
[405376224,1771093988436,-500.0,0.00043561,120]
[405376225,1771093988447,-3459.63,0.00043561,120]
[405376226,1771093988458,-1007.77,0.00043561,120]
[405376227,1771093988472,-1366.15,0.00043561,2]
[405376228,1771093988483,-1397.34,0.00043561,120]
[405376229,1771093988495,-581.99,0.00043561,120]
[405376230,1771093988506,-500.0,0.00043561,120]
[405376231,1771093988518,-3781.3,0.00043561,120]
[405376232,1771093988530,-500.0,0.00043561,120]
[405376233,1771093988542,-500.0,0.00043561,120]
[405376234,1771093988553,-478.08546335,0.00043561,120]
[405376235,1771093988565,-665.99,0.00043561,120]
[405376236,1771093988577,-500.0,0.00043561,120]
[405376237,1771093988590,-500.0,0.00043561,120]
[405376238,1771093988601,-512.2,0.00043561,120]
[405376239,1771093988614,-516.7,0.00043561,120]
[405376240,1771093988627,-500.0,0.00043561,120]
[405376241,1771093988639,-603.5330212,0.00043561,120]
[405376242,1771093988650,-3417.97,0.00043561,120]
[405376243,1771093988662,-5149.98,0.00043561,120]
[405376244,1771093988673,-3403.19,0.00043561,120]
[405376245,1771093988685,-500.0,0.00043561,120]
[405376246,1771093988696,-538.62,0.00043561,120]
[405376247,1771093988709,-500.0,0.00043561,120]
[405376248,1771093988721,-556.88,0.00043561,120]
[405376249,1771093988733,-561.54,0.00043561,60]
[405376250,1771093988745,-1233.52,0.00043561,120]
[405376251,1771093988758,-5585.82,0.00043561,120]
[405376252,1771093988769,-540.9,0.00043561,2]
[405376253,1771093988780,-524.45,0.00043561,120]
[405376254,1771093988791,-711.16,0.00043561,120]
[405376255,1771093988803,-885.44,0.00043561,120]
[405376256,1771093988814,-2840.08,0.00043561,90]
[405376257,1771093988826,-500.0,0.00043561,120]
[405376258,1771093988838,-175.17707611,0.00043561,120]
[405376259,1771093988849,-500.06,0.00043561,120]
[405376260,1771093988861,-500.0,0.00043561,120]
[405376261,1771093988873,-3032.83,0.00043561,120]
[405376262,1771093988885,-3433.22,0.00043561,120]
[405376263,1771093988897,-631.89,0.00043561,120]
[405376264,1771093988910,-500.0,0.00043561,120]
[405376265,1771093988922,-644.01133564,0.00043561,120]
[405376266,1771093988933,-3775.51,0.00043561,120]
[405376267,1771093988945,-1984.08,0.00043561,120]
[405376268,1771093988956,-3890.45,0.00043561,120]
[405376269,1771093988967,-4088.99,0.00043561,120]
[405376270,1771093988979,-246.16655504,0.00043561,120]
[405376271,1771093988991,-500.0,0.00043561,120]
[405376272,1771093989004,-870.9,0.00043561,120]
[405376273,1771093989016,-710.66,0.00043561,120]
[405376274,1771093989027,-3872.17,0.00043561,120]
[405376275,1771093989038,-577.68,0.00043561,120]
[405376276,1771093989050,-500.0,0.00043561,120]
[405376277,1771093989063,-5100.22,0.00043561,120]
[405376278,1771093989074,-10810.91,0.00043561,120]
[405376279,1771093989086,-4011.27,0.00043561,120]
[405376280,1771093989097,-4569.78,0.00043561,120]
[405376281,1771093989109,-500.0,0.00043561,120]
[405376282,1771093989119,-3982.43,0.00043561,120]
[405376283,1771093989131,-500.0,0.00043561,120]
[405376284,1771093989141,-945.81,0.00043561,120]
[405376285,1771093989153,-5326.62,0.00043561,120]
[405376286,1771093989165,-1374.78,0.00043561,120]
[405376287,1771093989177,-4059.63,0.00043561,120]
[405376288,1771093989188,-246.74280446,0.00043561,120]
[405376289,1771093989199,-3578.35,0.00043561,120]
[405376290,1771093989210,-5981.56,0.00043561,120]
[405376291,1771093989221,-5562.93,0.00043561,120]
[405376292,1771093989231,-3292.7,0.00043561,120]
[405376293,1771093989242,-3804.91,0.00043561,120]
[405376294,1771093989254,-10011.46,0.00043561,120]
[405376295,1771093989265,-5698.9,0.00043561,120]
[405376296,1771093989276,-618.1,0.00043561,120]
[405376297,1771093989287,-500.0,0.00043561,120]
[405376298,1771093989298,-3635.6,0.00043561,120]
[405376299,1771093989310,-4860.79,0.00043561,120]
[405376300,1771093989321,-585.84,0.00043561,120]
[405376301,1771093989333,-5822.07,0.00043561,120]
[405376302,1771093989344,-8145.86,0.00043561,120]
[405376303,1771093989356,-3702.56,0.00043561,120]
[405376304,1771093989368,-1020.67,0.00043561,120]
[405376306,1771093989379,-579.77,0.00043561,120]
[405376307,1771093989390,-2809.91,0.00043561,15]
[405376308,1771093989401,-692.65,0.00043561,120]
[405376309,1771093989414,-835.77,0.00043561,120]
[405376310,1771093989430,-4321.01,0.00043561,120]
[405376311,1771093989442,-400.0,0.00043561,120]
[405376312,1771093989453,-500.0,0.00043561,120]
[405376313,1771093989465,-11996.33,0.00043561,120]
[405376314,1771093989476,-5541.84,0.00043561,120]
[405376315,1771093989487,-4068.1,0.00043561,120]
[405376316,1771093989505,-3498.65,0.00043561,120]
[405376317,1771093989519,-4772.89,0.00043561,120]
[405376318,1771093989530,-3599.74,0.00043561,120]
[405376319,1771093989542,-3590.36,0.00043561,120]
[405376320,1771093989554,-555.53,0.00043561,120]
[405376321,1771093989567,-602.84,0.00043561,30]
[405376322,1771093989578,-3986.91,0.00043561,120]
[405376323,1771093989596,-4500.2,0.00043561,120]
[405376324,1771093989608,-373.70651545,0.00043561,120]
[405376325,1771093989620,-549.78351831,0.00043561,120]
[405376326,1771093989632,-17167.11,0.00043561,15]
[405376327,1771093989644,-500.0,0.00043561,120]
[405376328,1771093989656,-6987.05,0.00043561,120]
[405376329,1771093989669,-792.61,0.00043561,120]
[405376330,1771093989680,-3809.76,0.00043561,120]
[405376331,1771093989692,-1872.91,0.00043561,120]
[405376332,1771093989704,-751.97,0.00043561,120]
[405376333,1771093989716,-4301.09,0.00043561,120]
[405376334,1771093989730,-500.0,0.00043561,120]
[405376335,1771093989744,-49453.89,0.00043561,120]
[405376336,1771093989755,-514.79,0.00043561,120]
[405376337,1771093989765,-522.72,0.00043561,120]
[405376338,1771093989776,-3592.54,0.00043561,120]
[405376339,1771093989787,-6816.69,0.00043561,120]
[405376340,1771093989799,-6877.26,0.00043561,120]
[405376341,1771093989811,-500.0,0.00043561,30]
[405376342,1771093989822,-3548.79,0.00043561,120]
[405376343,1771093989833,-643.83,0.00043561,120]
[405376344,1771093989844,-5429.53,0.00043561,120]
[405376345,1771093989855,-4648.43,0.00043561,120]
[405376346,1771093989866,-685.71,0.00043561,120]
[405376347,1771093989878,-500.0,0.00043561,120]
[405376348,1771093989889,-500.0,0.00043561,120]
[405376349,1771093989900,-1668.59,0.00043561,120]
[405376350,1771093989911,-622.0,0.00043561,120]
[405376351,1771093989923,-4113.81,0.00043561,120]
[405376352,1771093989934,-735.58,0.00043561,120]
[405376353,1771093989947,-563.34257614,0.00043561,120]
[405376354,1771093989960,-1564.16,0.00043561,120]
[405376355,1771093989972,-678.21,0.00043561,120]
[405376356,1771093989985,-2515.75,0.00043561,120]
[405376357,1771093989998,-4400.86,0.00043561,120]
[405376358,1771093990011,-579.75,0.00043561,120]
[405376359,1771093990023,-798.86,0.00043561,120]
[405376360,1771093990036,-1141.19,0.00043561,120]
[405376361,1771093990049,-995.04,0.00043561,120]
[405376362,1771093990063,-9716.73,0.00043561,120]
[405376363,1771093990076,-4640.07,0.00043561,120]
[405376364,1771093990089,-11992.05970149,0.00043563,2]
[405376365,1771093990101,-302.4,0.00043585,120]
[405376366,1771093990115,-318.28,0.00043585,120]
[405376367,1771093990127,-152.12,0.00043595,120]
[405376368,1771093990139,-50000.0,0.000436,120]
[405376369,1771093990152,-203.22298834,0.000436,120]
[405376370,1771093990164,-12435.76591044,0.00043618,2]
[405376371,1771093990179,-341.36785526,0.00043641,30]
[405376372,1771093990192,-661.64,0.00043671,120]
[405376373,1771093990207,-12895.88924913,0.00043673,2]
[405376374,1771093990221,-200.0,0.00043678,120]
[405376375,1771093990234,-152.12,0.00043695,120]
[405376376,1771093990248,-181.0,0.00043699,60]
[405376377,1771093990261,-181.0,0.00043699,30]
[405376378,1771093990276,-181.0,0.00043699,120]
[405376379,1771093990289,-181.0,0.00043699,117]
[405376380,1771093990302,-181.0,0.00043699,35]
[405376381,1771093990315,-181.0,0.00043699,30]
[405376382,1771093990326,-181.0,0.00043699,45]
[405376383,1771093990338,-181.0,0.00043699,30]
[405376384,1771093990350,-181.0,0.00043699,30]
[405376385,1771093990363,-181.0,0.00043699,48]
[405376386,1771093990376,-325.95812173,0.00043699,31]
[405376387,1771093990596,-9331.67,0.00043699,120]
[405376388,1771093990611,-50000.0,0.000437,120]
[405376389,1771093990624,-152.0,0.000437,120]
[405376390,1771093990638,-499.0,0.00043723,120]
[405376391,1771093990651,-499.0,0.00043723,120]
[405376392,1771093990664,-13373.03715135,0.00043728,2]
[405376393,1771093990677,-300.0,0.0004377,3]
[405376394,1771093990691,-20000.0,0.0004377,120]
[405376395,1771093990704,-13867.83952595,0.00043783,2]
[405376396,1771093990718,-152.12,0.00043795,120]
[405376397,1771093990731,-505.0,0.000438,30]
[405376398,1771093990745,-600.0,0.000438,30]
[405376399,1771093990759,-600.0,0.000438,30]
[405376400,1771093990772,-665.0,0.000438,30]
[405376401,1771093990785,-298.8270406,0.000438,120]
[405376402,1771093990799,-84421.73144204,0.000438,30]
[405376403,1771093990813,-208419.0770673,0.000438,7]
[405376404,1771093990826,-87246.17870246,0.000438,7]
[405376405,1771093990838,-50000.0,0.000438,120]
[405376406,1771093990851,-448.64,0.000438,120]
[405376407,1771093990864,-500.0,0.000438,120]
[405376408,1771093990876,-500.0,0.000438,120]
[405376409,1771093990888,-500.0,0.000438,120]
[405376410,1771093990900,-500.0,0.000438,120]
[405376411,1771093990913,-500.0,0.000438,120]
[405376412,1771093990926,-456.31,0.000438,120]
[405376413,1771093990939,-365.31294994,0.000438,120]
[405376414,1771093990951,-500.0,0.000438,120]
[405376415,1771093990964,-748.92,0.000438,120]
[405376416,1771093990977,-10500.8539037,0.000438,120]
[405376417,1771093990990,-661.64,0.00043808,120]
[405376418,1771093991003,-1000.0,0.00043815,2]
[405376419,1771093991018,-13107.0,0.00043819,30]
[405376420,1771093991031,-7259.458683,0.0004383,120]
[405376421,1771093991049,-150.0,0.00043832,120]
[405376422,1771093991063,-181.0,0.00043833,60]
[405376423,1771093991077,-207.4,0.00043833,60]
[405376424,1771093991092,-1000.0,0.00043834,120]
[405376425,1771093991110,-262.69610892,0.00043834,60]
[405376426,1771093991123,-181.0,0.00043834,60]
[405376427,1771093991137,-181.0,0.00043834,120]
[405376428,1771093991150,-200.0,0.00043834,60]
[405376429,1771093991162,-2236.17,0.00043835,120]
[405376430,1771093991175,-1499.27,0.00043835,120]
[405376431,1771093991188,-679.39,0.00043835,120]
[405376432,1771093991202,-530.55,0.00043835,120]
[405376433,1771093991215,-425.12,0.00043835,2]
[405376434,1771093991228,-500.0,0.00043835,120]
[405376435,1771093991240,-500.0,0.00043835,120]
[405376436,1771093991253,-3818.35,0.00043835,120]
[405376437,1771093991267,-500.0,0.00043835,120]
[405376438,1771093991280,-1478.52,0.00043835,120]
[405376439,1771093991294,-500.0,0.00043835,120]
[405376440,1771093991308,-556.97,0.00043835,120]
[405376441,1771093991324,-500.0,0.00043835,120]
[405376442,1771093991631,-500.0,0.00043835,120]
[405376443,1771093991652,-3459.63,0.00043835,120]
[405376444,1771093991663,-1007.77,0.00043835,120]
[405376445,1771093991672,-1366.15,0.00043835,2]
[405376446,1771093991682,-1397.34,0.00043835,120]
[405376447,1771093991691,-581.99,0.00043835,120]
[405376448,1771093991700,-500.0,0.00043835,120]
[405376449,1771093991710,-3781.3,0.00043835,120]
[405376450,1771093991720,-608.08961481,0.00043835,120]
[405376451,1771093991730,-500.0,0.00043835,120]
[405376452,1771093991740,-665.99,0.00043835,120]
[405376453,1771093991751,-500.0,0.00043835,120]
[405376454,1771093991762,-500.0,0.00043835,120]
[405376455,1771093991770,-512.2,0.00043835,120]
[405376456,1771093991779,-516.7,0.00043835,120]
[405376457,1771093991789,-500.0,0.00043835,120]
[405376458,1771093991799,-3417.97,0.00043835,120]
[405376459,1771093991808,-5149.98,0.00043835,120]
[405376460,1771093991818,-3403.19,0.00043835,120]
[405376461,1771093991828,-500.0,0.00043835,120]
[405376462,1771093991838,-538.62,0.00043835,120]
[405376463,1771093991848,-500.0,0.00043835,120]
[405376464,1771093991857,-556.88,0.00043835,120]
[405376465,1771093991867,-561.54,0.00043835,60]
[405376466,1771093991877,-1233.52,0.00043835,120]
[405376467,1771093991887,-5585.82,0.00043835,120]
[405376468,1771093991897,-540.9,0.00043835,2]
[405376469,1771093991907,-524.45,0.00043835,120]
[405376470,1771093991916,-711.16,0.00043835,120]
[405376471,1771093991926,-885.44,0.00043835,120]
[405376472,1771093991935,-500.0,0.00043835,120]
[405376473,1771093991946,-500.0,0.00043835,120]
[405376474,1771093991955,-508.22521901,0.00043835,120]
[405376475,1771093991964,-2840.08,0.00043835,90]
[405376476,1771093991974,-597.51991471,0.00043835,120]
[405376477,1771093991984,-500.06,0.00043835,120]
[405376478,1771093991994,-500.0,0.00043835,120]
[405376479,1771093992003,-3032.83,0.00043835,120]
[405376480,1771093992013,-3433.22,0.00043835,120]
[405376481,1771093992023,-631.89,0.00043835,120]
[405376482,1771093992033,-347.11278838,0.00043835,120]
[405376483,1771093992044,-3775.51,0.00043835,120]
[405376484,1771093992054,-1984.08,0.00043835,120]
[405376485,1771093992063,-3890.45,0.00043835,120]
[405376486,1771093992073,-4088.99,0.00043835,120]
[405376487,1771093992083,-500.0,0.00043835,120]
[405376488,1771093992092,-870.9,0.00043835,120]
[405376489,1771093992102,-710.66,0.00043835,120]
[405376490,1771093992112,-6355.63,0.00043835,120]
[405376491,1771093992123,-6355.63,0.00043835,120]
[405376492,1771093992134,-6355.63,0.00043835,120]
[405376493,1771093992144,-6355.63,0.00043835,120]
[405376494,1771093992155,-6355.63,0.00043835,120]
[405376495,1771093992164,-6355.63,0.00043835,120]
[405376496,1771093992174,-6355.63,0.00043835,120]
[405376497,1771093992184,-6355.63,0.00043835,120]
[405376498,1771093992194,-6355.63,0.00043835,120]
[405376499,1771093992204,-6355.63,0.00043835,120]
[405376500,1771093992213,-6355.63,0.00043835,120]
[405376501,1771093992223,-6355.63,0.00043835,120]
[405376502,1771093992233,-6355.63,0.00043835,120]
[405376503,1771093992243,-6355.63,0.00043835,120]
[405376504,1771093992252,-6355.63,0.00043835,120]
[405376505,1771093992262,-6355.63,0.00043835,120]
[405376506,1771093992273,-6355.63,0.00043835,120]
[405376507,1771093992282,-6355.63,0.00043835,120]
[405376508,1771093992292,-6355.63,0.00043835,120]
[405376509,1771093992301,-6355.63,0.00043835,120]
[405376510,1771093992311,-6355.63,0.00043835,120]
[405376511,1771093992320,-3872.17,0.00043835,120]
[405376512,1771093992330,-1999.0,0.00043835,120]
[405376513,1771093992339,-577.68,0.00043835,120]
[405376514,1771093992348,-469.82734908,0.00043835,120]
[405376515,1771093992358,-5100.22,0.00043835,120]
[405376516,1771093992367,-10810.91,0.00043835,120]
[405376517,1771093992377,-4011.27,0.00043835,120]
[405376518,1771093992386,-4569.78,0.00043835,120]
[405376519,1771093992396,-363.42737353,0.00043835,120]
[405376520,1771093992406,-3982.43,0.00043835,120]
[405376521,1771093992415,-500.0,0.00043835,120]
[405376522,1771093992428,-945.81,0.00043835,120]
[405376523,1771093992438,-5326.62,0.00043835,120]
[405376524,1771093992447,-1374.78,0.00043835,120]
[405376525,1771093992457,-4059.63,0.00043835,120]
[405376526,1771093992469,-3578.35,0.00043835,120]
[405376527,1771093992479,-5981.56,0.00043835,120]
[405376528,1771093992490,-5562.93,0.00043835,120]
[405376529,1771093992500,-3292.7,0.00043835,120]
[405376530,1771093992512,-3804.91,0.00043835,120]
[405376531,1771093992522,-10011.46,0.00043835,120]
[405376532,1771093992532,-5698.9,0.00043835,120]
[405376533,1771093992541,-618.1,0.00043835,120]
[405376534,1771093992551,-500.0,0.00043835,120]
[405376535,1771093992560,-3635.6,0.00043835,120]
[405376536,1771093992570,-4860.79,0.00043835,120]
[405376537,1771093992580,-585.84,0.00043835,120]
[405376538,1771093992589,-5822.07,0.00043835,120]
[405376539,1771093992599,-8145.86,0.00043835,120]
[405376540,1771093992608,-3702.56,0.00043835,120]
[405376541,1771093992617,-1020.67,0.00043835,120]
[405376542,1771093992627,-579.77,0.00043835,120]
[405376543,1771093992636,-2809.91,0.00043835,15]
[405376544,1771093992645,-692.65,0.00043835,120]
[405376545,1771093992655,-835.77,0.00043835,120]
[405376546,1771093992665,-4321.01,0.00043835,120]
[405376547,1771093992674,-400.0,0.00043835,120]
[405376548,1771093992683,-500.0,0.00043835,120]
[405376549,1771093992692,-11996.33,0.00043835,120]
[405376550,1771093992701,-5541.84,0.00043835,120]
[405376551,1771093992711,-4068.1,0.00043835,120]
[405376552,1771093992721,-3498.65,0.00043835,120]
[405376553,1771093992730,-4772.89,0.00043835,120]
[405376554,1771093992740,-3599.74,0.00043835,120]
[405376555,1771093992749,-3590.36,0.00043835,120]
[405376556,1771093992758,-2260.49,0.00043835,120]
[405376557,1771093992767,-2260.49,0.00043835,120]
[405376558,1771093992776,-2260.49,0.00043835,120]
[405376559,1771093992786,-555.53,0.00043835,120]
[405376560,1771093992795,-2260.49,0.00043835,120]
[405376561,1771093992805,-2260.49,0.00043835,120]
[405376562,1771093992814,-2260.49,0.00043835,120]
[405376563,1771093992823,-2260.49,0.00043835,120]
[405376564,1771093992832,-2260.49,0.00043835,120]
[405376565,1771093992842,-2260.49,0.00043835,120]
[405376566,1771093992851,-2260.49,0.00043835,120]
[405376567,1771093992860,-2260.49,0.00043835,120]
[405376568,1771093992870,-2260.49,0.00043835,120]
[405376569,1771093992880,-2260.49,0.00043835,120]
[405376570,1771093992889,-2260.49,0.00043835,120]
[405376571,1771093992899,-2260.49,0.00043835,120]
[405376572,1771093992908,-2260.49,0.00043835,120]
[405376573,1771093992918,-2260.49,0.00043835,120]
[405376574,1771093992928,-2260.49,0.00043835,120]
[405376575,1771093992937,-2260.49,0.00043835,120]
[405376576,1771093992947,-2260.49,0.00043835,120]
[405376577,1771093992956,-2260.49,0.00043835,120]
[405376578,1771093992966,-3986.91,0.00043835,120]
[405376579,1771093992975,-602.84,0.00043835,30]
[405376580,1771093992985,-4500.2,0.00043835,120]
[405376581,1771093992995,-17167.11,0.00043835,15]
[405376582,1771093993005,-609.59418726,0.00043835,120]
[405376583,1771093993015,-6987.05,0.00043835,120]